fUST/lending_fUST_20240206
["ID","MTS","AMOUNT","RATE_DAILY","PERIOD"]
[313321972,1707149435403,-2832.04687078,0.00020854,2]
[313321974,1707149435416,-22067.95312922,0.00020854,2]
[313321975,1707149435426,-243.75066271,0.00020989,2]
[313321977,1707149435436,-1744.84561809,0.0002099,2]
[313321979,1707149435446,-213.97471968,0.0002099,2]
[313321981,1707149435456,-261.7382988,0.00020991,2]
[313321983,1707149435466,-4178.33901394,0.00020991,2]
[313321985,1707149435475,-717.73938521,0.00020992,2]
[313321987,1707149435485,-167.09546484,0.00020993,2]
[313321988,1707149435495,-5850.72782731,0.00020993,2]
[313321990,1707149435504,-298.59040419,0.00020994,2]
[313321992,1707149435514,-5221.87886106,0.00020994,2]
[313321994,1707149435523,-233.52795655,0.00021,2]
[313321995,1707149435533,-304.93311857,0.00021,2]
[313321996,1707149435543,-200.0,0.00021,2]
[313321997,1707149435698,-2300.0,0.00021851,2]
[313321998,1707149435714,-2064.9784931,0.00021886,5]
[313321999,1707149435724,-200.0,0.00022,2]
[313322000,1707149435733,-168.414013,0.00022291,2]
[313322001,1707149435743,-748.3,0.00022553,3]
[313322002,1707149435753,-492.7,0.00022555,3]
[313322003,1707149435762,-897.95,0.00022555,3]
[313322004,1707149435771,-155.03255684,0.00022561,2]
[313322005,1707149435781,-155.02170304,0.00022562,2]
[313322006,1707149435790,-591.46387587,0.00022563,2]
[313322007,1707149435800,-161.36698109,0.00022563,2]
[313322008,1707149435809,-1200.7118793,0.00022563,2]
[313322009,1707149435820,-4528.19471672,0.00022563,2]
[313322042,1707149438608,-3619.265334,0.00022563,2]
[313322046,1707149438665,-3253.52716974,0.00022563,2]
[313322063,1707149441708,-9512.36504619,0.00022563,2]
[313322064,1707149441719,-166.0964028,0.00022564,2]
[313322065,1707149441729,-286.86466344,0.00022889,2]
[313322066,1707149441738,-979.94865421,0.00022989,2]
[313322067,1707149441748,-200.0,0.00023,2]
[313322068,1707149441757,-1583.8500325,0.00023175,2]
[313322069,1707149441767,-590.78951827,0.00023546,2]
[313322070,1707149441776,-200.0,0.00023692,7]
[313322071,1707149441785,-200.0,0.00024,2]
[313322072,1707149441795,-111.02583619,0.00024657,2]
[313322073,1707149441806,-388.97416381,0.00024657,2]
[313322074,1707149441815,-304.57091656,0.00024991,2]
[313322075,1707149441825,-649.87,0.00024996,2]
[313322076,1707149441835,-1064.67,0.00024996,2]
[313322077,1707149441845,-2986.11162539,0.00024997,2]
[313322078,1707149441856,-1051.32049077,0.00024997,2]
[313322079,1707149441866,-500.0,0.00024997,2]
[313322080,1707149441875,-500.0,0.00024997,2]
[313322081,1707149441884,-500.0,0.00024997,2]
[313322082,1707149441893,-500.0,0.00024997,2]
[313322083,1707149441902,-500.0,0.00024997,2]
[313322084,1707149441911,-1187.1017718,0.00024997,2]
[313322085,1707149441923,-1045.1782282,0.00024997,2]
[313322086,1707149441934,-500.0,0.00024997,2]
[313322087,1707149441943,-500.0,0.00024997,2]
[313322088,1707149441952,-500.0,0.00024997,2]
[313322089,1707149441961,-976.75,0.00024997,2]
[313322090,1707149441970,-500.0,0.00024997,2]
[313322091,1707149441979,-500.0,0.00024997,2]
[313322092,1707149441989,-500.0,0.00024997,2]
[313322093,1707149441998,-45.03445842,0.00024997,2]
[313322094,1707149442010,-454.96554158,0.00024997,2]
[313322095,1707149442019,-950.26,0.00024997,2]
[313322096,1707149442028,-500.0,0.00024997,2]
[313322097,1707149442037,-1276.95,0.00024998,2]
[313322098,1707149442047,-1074.85227263,0.00024999,2]
[313322099,1707149442059,-755.11722858,0.00024999,2]
[313322100,1707149442068,-660.85,0.00024999,2]
[313322101,1707149442077,-500.0,0.00024999,2]
[313322102,1707149442086,-335.39772833,0.00025,2]
[313322103,1707149442096,-4984.17741817,0.00025,2]
[313322104,1707149442107,-1313.12262679,0.00025,2]
[313322105,1707149442117,-200.0,0.00025,2]
[313322106,1707149442126,-1433.49,0.00025193,2]
[313322107,1707149442135,-5484.36,0.00025193,2]
[313322108,1707149442144,-849.63949095,0.00025193,2]
[313322109,1707149442158,-508.33050905,0.00025193,2]
[313322110,1707149442168,-197.2351802,0.00025205,2]
[313322111,1707149442177,-310.5348743,0.00025205,2]
[313322112,1707149442186,-199.8298339,0.00025205,2]
[313322113,1707149442196,-153.0,0.00025205,2]
[313322114,1707149442205,-199.8298339,0.00025205,2]
[313322115,1707149442215,-199.8298339,0.00025205,2]
[313322116,1707149442224,-199.8298339,0.00025205,2]
[313322117,1707149442234,-199.0070524,0.00025205,2]
[313322118,1707149442243,-175.49039698,0.0002527,2]
[313322119,1707149442252,-2098.62971855,0.0002527,2]
[313322120,1707149442265,-118.97373015,0.0002527,2]
[313322121,1707149442274,-444.00739687,0.0002527,2]
[313322122,1707149442288,-64.19050851,0.0002527,2]
[313322123,1707149442297,-463.19152753,0.0002527,2]
[313322124,1707149442307,-649.87,0.0002527,2]
[313322125,1707149442316,-851.60345306,0.0002527,2]
[313322126,1707149442332,-213.06654694,0.0002527,2]
[313322127,1707149442341,-500.0,0.00025271,2]
[313322128,1707149442350,-500.0,0.00025271,2]
[313322129,1707149442359,-2232.28,0.00025271,2]
[313322130,1707149442369,-500.0,0.00025271,2]
[313322131,1707149442378,-500.0,0.00025271,2]
[313322132,1707149442387,-976.75,0.00025271,2]
[313322133,1707149442396,-500.0,0.00025271,2]
[313322134,1707149442405,-500.0,0.00025271,2]
[313322135,1707149442414,-500.0,0.00025271,2]
[313322136,1707149442423,-500.0,0.00025271,2]
[313322137,1707149442433,-950.26,0.00025271,2]
[313322138,1707149442442,-500.0,0.00025271,2]
[313322139,1707149442451,-1276.95,0.00025272,2]
[313322140,1707149442460,-660.85,0.00025273,2]
[313322141,1707149442469,-1433.49,0.00025467,2]
[313322142,1707149442479,-5239.0830765,0.00025467,2]
[313322143,1707149442493,-245.2769235,0.00025467,2]
[313322144,1707149442503,-1357.97,0.00025467,2]
[313322145,1707149442512,-21459.61651277,0.000255,2]
[313322146,1707149442525,-5060.6222095,0.000255,2]
[313322147,1707149442538,-9805.91059287,0.000255,2]
[313322148,1707149442573,-308.87921705,0.000255,2]
[313322169,1707149443559,-645.89453763,0.000255,2]
[313322170,1707149443617,-42753.07693018,0.000255,2]
[313322171,1707149443626,-155.0356582,0.00025543,2]
[313322172,1707149443636,-556.62730665,0.00025544,2]
[313322173,1707149443646,-649.87,0.00025544,2]
[313322175,1707149443655,-1064.67,0.00025544,2]
[313322177,1707149443664,-451.71313205,0.00025545,2]
[313322178,1707149443673,-500.0,0.00025545,2]
[313322179,1707149443682,-2232.28,0.00025545,2]
[313322180,1707149443691,-500.0,0.00025545,2]
[313322181,1707149443700,-500.0,0.00025545,2]
[313322182,1707149443709,-976.75,0.00025545,2]
[313322183,1707149443719,-500.0,0.00025545,2]
[313322184,1707149443728,-500.0,0.00025545,2]
[313322185,1707149443737,-500.0,0.00025545,2]
[313322186,1707149443746,-500.0,0.00025545,2]
[313322187,1707149443755,-950.26,0.00025545,2]
[313322188,1707149443765,-500.0,0.00025545,2]
[313322189,1707149443774,-1276.95,0.00025546,2]
[313322190,1707149443784,-660.85,0.00025547,2]
[313322191,1707149443793,-484.25262047,0.00025645,2]
[313322192,1707149443805,-785.22659646,0.00025645,2]
[313322193,1707149443814,-286.86466342,0.0002573,2]
[313322194,1707149443824,-1433.49,0.00025741,2]
[313322195,1707149443833,-791.09510386,0.00025741,2]
[313322218,1707149446577,-426.01,0.0002549,3]
[313322260,1707150274437,2801.4,0.0002,2]
[313322375,1707150637777,-213.97471968,0.00020604,2]
[313322377,1707150637794,-261.7382988,0.00020605,2]
[313322379,1707150637803,-1041.38408988,0.00020606,2]
[313322531,1707150642872,-23858.61591012,0.00020606,2]
[313322533,1707150642883,-1744.84561809,0.0002159,2]
[313322536,1707150642895,-717.73938521,0.00021591,2]
[313322539,1707150642904,-1296.64671894,0.00021591,2]
[313322542,1707150642914,-4178.33901394,0.00021592,2]
[313322545,1707150642923,-5221.87886106,0.00021593,2]
[313322548,1707150642933,-620.18,0.00021602,3]
[313322551,1707150642942,-897.99,0.00021602,3]
[313322554,1707150642951,-748.33,0.00021602,3]
[313322557,1707150642961,-639.85213328,0.0002161,2]
[313322560,1707150642970,-155.03255684,0.00021611,2]
[313322562,1707150642980,-83865.18058421,0.00021612,2]
[313322564,1707150642989,-3000.0,0.0002162,2]
[313322566,1707150642998,-345.864412,0.00021688,2]
[313322568,1707150643007,-193.27651034,0.00022,4]
[313322570,1707150643016,-533.4307293,0.00022054,2]
[313322572,1707150643025,-3328.64967646,0.00022055,2]
[313322574,1707150643035,-19120.93202142,0.00022055,2]
[313322577,1707150643044,-321.99248373,0.00022181,2]
[313322580,1707150643053,-953.43226612,0.00022189,2]
[313322583,1707150643062,-3752.87220782,0.00022277,2]
[313322586,1707150643071,-330.23570657,0.00022278,2]
[313322589,1707150643080,-155.22975255,0.00022278,2]
[313322592,1707150643089,-155.44957605,0.00022279,2]
[313322595,1707150643098,-19739.90607694,0.00022279,2]
[313322598,1707150643108,-476.9810504,0.0002228,2]
[313322600,1707150643120,-36557.2180151,0.0002228,2]
[313322603,1707150643129,-155.57854716,0.00022495,2]
[313322605,1707150643139,-200.0,0.00022693,7]
[313322608,1707150643148,-393.85967884,0.00023445,2]
[313322610,1707150643157,-151.0,0.00023677,2]
[313322612,1707150643166,-500.0,0.00024657,2]
[313322615,1707150643175,-375.65123642,0.00024657,2]
[313322618,1707150643185,-1117.33,0.00024657,2]
[313322621,1707150643194,-500.0,0.00024657,2]
[313322622,1707150643203,-2057.61,0.00024657,2]
[313322624,1707150643212,-568.64,0.00024657,2]
[313322626,1707150643221,-500.0,0.00024657,2]
[313322627,1707150643230,-500.0,0.00024657,2]
[313322629,1707150643239,-854.65,0.00024657,2]
[313322631,1707150643248,-977.05,0.00024657,2]
[313322632,1707150643258,-500.0,0.00024657,2]
[313322634,1707150643267,-492.7782621,0.00024657,2]
[313322636,1707150643276,-500.0,0.00024657,2]
[313322637,1707150643285,-500.0,0.00024657,2]
[313322639,1707150643294,-500.0,0.00024657,2]
[313322641,1707150643303,-500.0,0.00024657,2]
[313322643,1707150643313,-500.0,0.00024657,2]
[313322645,1707150643322,-831.48,0.00024657,2]
[313322646,1707150643331,-311.94,0.00024657,2]
[313322648,1707150643340,-500.0,0.00024931,2]
[313322650,1707150643349,-1117.33,0.00024931,2]
[313322652,1707150643360,-2057.61,0.00024931,2]
[313322653,1707150643369,-568.64,0.00024931,2]
[313322655,1707150643379,-500.0,0.00024931,2]
[313322657,1707150643389,-500.0,0.00024931,2]
[313322659,1707150643398,-854.65,0.00024931,2]
[313322660,1707150643408,-977.05,0.00024931,2]
[313322662,1707150643417,-500.0,0.00024931,2]
[313322664,1707150643428,-82.91744319,0.00024931,2]
[313322715,1707150645954,-852.05,0.00020605,2]
[313322716,1707150645966,-3312.95890274,0.00020605,2]
[313322717,1707150646016,-1685.71892457,0.00020605,2]
[313322718,1707150646026,-500.0,0.00024657,2]
[313322720,1707150646036,-55.0080026,0.00024931,2]
[313322723,1707150831883,6242.0,0.000201,4]
[313322724,1707150895182,2089.79639896,0.000201,2]
[313322725,1707150902018,300.0,0.000201,2]
[313322726,1707150911174,110.20360104,0.000201,2]
[313322727,1707150932788,169.100671,0.00019876,2]
[313322728,1707151056228,24428.5065999,0.00019955,2]
[313322736,1707151276688,288.220344,0.00019893,2]
[313322737,1707151315001,2300.0,0.00019928,2]
[313322742,1707151545828,366.34573205,0.000189,2]
[313322743,1707151626400,-243.75066271,0.00020036,2]
[313322744,1707151626422,-1744.84561809,0.00020036,2]
[313322745,1707151626444,-167.09546484,0.00020037,2]
[313322746,1707151626464,-155.02790502,0.00020038,2]
[313322747,1707151626484,-213.97471968,0.00020038,2]
[313322748,1707151626505,-155.02790502,0.00020039,2]
[313322749,1707151626526,-261.7382988,0.00020039,2]
[313322750,1707151626547,-1762.53942584,0.00020039,2]
[313322751,1707151705984,538.83676504,0.00019959,2]
[313322752,1707151807999,288.220344,0.00019054,2]
[313322793,1707151831876,-3754.28258322,0.00020027,2]
[313322794,1707151831990,-5221.87886106,0.00020028,2]
[313322795,1707151831999,-4178.33901394,0.00020029,2]
[313322796,1707151832009,-1850.21010577,0.00020033,2]
[313322797,1707151832018,-300.0,0.00020039,2]
[313322798,1707151832027,-2089.79639896,0.00020039,2]
[313322799,1707151832036,-775.6,0.00020051,3]
[313322800,1707151832060,-155.73163206,0.00020059,2]
[313322801,1707151832070,-262.25287913,0.00020059,2]
[313322802,1707151832080,-215.95569112,0.00020059,2]
[313322803,1707151832090,-1129.86734431,0.00020059,2]
[313322804,1707151832100,-244.59864822,0.00020059,2]
[313322805,1707151832110,-262.3394983,0.00020059,2]
[313322806,1707151832121,-169.22773207,0.00020059,2]
[313322807,1707151832131,-914.4094388,0.0002006,2]
[313322808,1707151832141,-76528.2475875,0.00020061,2]
[313322809,1707151832150,-200.0,0.00021063,2]
[313322810,1707151832160,-2189.90694205,0.00021606,5]
[313322811,1707151832170,-155.02480397,0.00021606,2]
[313322812,1707151832180,-1859.0329583,0.00021607,2]
[313322813,1707151832190,-155.05116031,0.00021608,2]
[313322814,1707151832200,-155.47989773,0.00021608,2]
[313322815,1707151832210,-231.33965723,0.00021608,2]
[313322816,1707151832220,-644.86914231,0.00021608,2]
[313322817,1707151832229,-13554.37109999,0.00021609,2]
[313322818,1707151832239,-13852.0143464,0.00021609,2]
[313322819,1707151832250,-10133.11309215,0.0002161,2]
[313322820,1707151832267,-372.08480885,0.0002161,2]
[313322821,1707151832279,-1957.2799859,0.0002161,2]
[313322833,1707151838134,-729.12,0.00020051,3]
[313322834,1707151838143,-183.6302234,0.00020963,2]
[313322835,1707151838153,-183.6302234,0.00021248,2]
[313322836,1707151838162,-8450.87437975,0.0002161,2]
[313322837,1707151838171,-166.666666,0.00021918,2]
[313322838,1707151838180,-3979.03719208,0.00022,2]
[313322839,1707151838189,-326.17134224,0.00022,2]
[313322840,1707151838198,-426.88835692,0.00022,2]
[313322841,1707151838207,-500.0,0.00022278,2]
[313322842,1707151838216,-500.0,0.00022278,2]
[313322843,1707151838225,-500.0,0.00022278,2]
[313322844,1707151838234,-500.0,0.00022278,2]
[313322845,1707151838244,-500.0,0.00022278,2]
[313322846,1707151838254,-500.0,0.00022278,2]
[313322847,1707151838263,-500.0,0.00022278,2]
[313322848,1707151838277,-401.94023558,0.00022278,2]
[313322849,1707151838286,-500.0,0.00022278,2]
[313322850,1707151838296,-500.0,0.00022278,2]
[313322851,1707151838307,-500.0,0.00022278,2]
[313322852,1707151838317,-500.0,0.00022278,2]
[313322853,1707151838326,-500.0,0.00022278,2]
[313322854,1707151838336,-500.0,0.00022278,2]
[313322855,1707151838345,-500.0,0.00022278,2]
[313322856,1707151838356,-500.0,0.00022278,2]
[313322857,1707151838365,-500.0,0.00022278,2]
[313322858,1707151838375,-500.0,0.00022278,2]
[313322859,1707151838385,-500.0,0.00022278,2]
[313322860,1707151838394,-500.0,0.00022278,2]
[313322861,1707151838405,-1000.0,0.00022279,3]
[313322862,1707151838415,-1000.0,0.00022279,3]
[313322863,1707151838424,-1000.0,0.00022279,3]
[313322864,1707151838433,-1000.0,0.00022279,3]
[313322865,1707151838443,-1000.0,0.00022279,3]
[313322866,1707151838452,-1000.0,0.00022279,3]
[313322867,1707151838461,-1000.0,0.00022279,3]
[313322868,1707151838476,-422.66718412,0.00022279,3]
[313322869,1707151838489,-166.666666,0.00022559,2]
[313322870,1707151838504,-1262.10938839,0.00023,2]
[313322871,1707151838517,-9959.98060866,0.00023,2]
[313322872,1707151838530,-1000.0,0.00023,2]
[313322873,1707151838542,-1305.16800275,0.00023119,2]
[313322874,1707151838553,-280.0,0.00023169,7]
[313322875,1707151838563,-166.666666,0.000232,2]
[313322876,1707151838573,-538.83676497,0.00023225,2]
[313322877,1707151838587,-166.666666,0.00023841,2]
[313322878,1707151838598,-366.34573205,0.000239,2]
[313322879,1707151838609,-153.0,0.00024384,2]
[313322880,1707151838622,-153.0,0.00024384,2]
[313322881,1707151838635,-153.0,0.00024384,2]
[313322882,1707151838646,-153.0,0.00024384,2]
[313322883,1707151838658,-153.0,0.00024384,2]
[313322884,1707151838671,-153.0,0.00024384,2]
[313322885,1707151838682,-199.8298339,0.00024384,2]
[313322886,1707151838695,-153.0,0.00024384,2]
[313322887,1707151838705,-199.8298339,0.00024384,2]
[313322888,1707151838715,-199.8298339,0.00024384,2]
[313322889,1707151838725,-153.0,0.00024384,2]
[313322890,1707151838737,-199.8298339,0.00024384,2]
[313322891,1707151838749,-199.8298339,0.00024384,2]
[313322892,1707151838761,-153.0,0.00024384,2]
[313322893,1707151838773,-199.8298339,0.00024384,2]
[313322894,1707151838784,-199.8298339,0.00024384,2]
[313322895,1707151838796,-153.0,0.00024384,2]
[313322896,1707151838807,-199.8298339,0.00024384,2]
[313322897,1707151838818,-199.8298339,0.00024384,2]
[313322898,1707151838829,-153.0,0.00024384,2]
[313322899,1707151838841,-199.8298339,0.00024384,2]
[313322900,1707151838852,-151.0,0.00024449,2]
[313322901,1707151838863,-166.666666,0.00024482,2]
[313322902,1707151838873,-500.0,0.00024657,2]
[313322903,1707151838885,-500.0,0.00024657,2]
[313322904,1707151838895,-500.0,0.00024657,2]
[313322905,1707151838907,-500.0,0.00024657,2]
[313322906,1707151838919,-500.0,0.00024657,2]
[313322907,1707151838930,-500.0,0.00024657,2]
[313322908,1707151838940,-1024.22,0.00024657,2]
[313322909,1707151838951,-578.24,0.00024657,2]
[313322910,1707151838963,-332.1928056,0.00024657,2]
[313322911,1707151838974,-1435.09,0.00024657,2]
[313322912,1707151838985,-1886.14,0.00024657,2]
[313322913,1707151838995,-521.25,0.00024657,2]
[313322914,1707151839006,-500.0,0.00024657,2]
[313322915,1707151839017,-4994.37,0.00024657,2]
[313322916,1707151839028,-1244.81,0.00024657,2]
[313322917,1707151839040,-500.0,0.00024657,2]
[313322918,1707151839050,-783.43,0.00024657,2]
[313322919,1707151839062,-895.63,0.00024657,2]
[313322920,1707151839074,-500.0,0.00024657,2]
[313322921,1707151839086,-500.0,0.00024657,2]
[313322922,1707151839097,-500.0,0.00024657,2]
[313322923,1707151839109,-500.0,0.00024657,2]
[313322924,1707151839120,-500.0,0.00024657,2]
[313322925,1707151839133,-796.83,0.00024657,2]
[313322926,1707151839143,-200.0,0.00024682,2]
[313322927,1707151839154,-200.0,0.00024682,2]
[313322928,1707151839164,-202.14796,0.00024682,2]
[313322929,1707151839174,-242.81069191,0.0002489,2]
[313322930,1707151839184,-155.4164968,0.0002493,2]
[313322931,1707151839199,-161.36698109,0.0002493,2]
[313322932,1707151839211,-213.50403566,0.00024931,2]
[313322933,1707151839221,-3252.21461977,0.00024931,2]
[313322934,1707151839232,-500.0,0.00024931,2]
[313322935,1707151839242,-500.0,0.00024931,2]
[313322936,1707151839253,-1024.22,0.00024931,2]
[313322937,1707151839263,-578.24,0.00024931,2]
[313322938,1707151839279,-151.0,0.00024931,2]
[313322939,1707151839290,-1435.09,0.00024931,2]
[313322940,1707151839300,-1886.14,0.00024931,2]
[313322941,1707151839310,-521.25,0.00024931,2]
[313322942,1707151839321,-500.0,0.00024931,2]
[313322943,1707151839331,-4678.49762118,0.00024931,2]
[313322944,1707151839348,-315.87237882,0.00024931,2]
[313322945,1707151839360,-673.428932,0.00024931,2]
[313322946,1707151839374,-571.381068,0.00024931,2]
[313322947,1707151839385,-500.0,0.00024931,2]
[313322948,1707151839396,-783.43,0.00024931,2]
[313322949,1707151839406,-895.63,0.00024931,2]
[313322950,1707151839418,-151.0,0.00024931,2]
[313322951,1707151839428,-500.0,0.00024931,2]
[313322952,1707151839439,-500.0,0.00024931,2]
[313322953,1707151839450,-500.0,0.00024931,2]
[313322954,1707151839459,-167.561569,0.00024931,2]
[313322955,1707151839470,-167.561569,0.00024931,2]
[313322956,1707151839481,-796.83,0.00024931,2]
[313322957,1707151839491,-175.0,0.00024998,2]
[313322958,1707151839502,-373.74785232,0.00024998,2]
[313322959,1707151839512,-4277.91769024,0.00025,2]
[313322977,1707151841113,-183.6302234,0.00021533,2]
[313322979,1707151841124,-183.6302234,0.00021818,2]
[313322980,1707151841135,-20000.0,0.00023841,2]
[313322981,1707151841145,-2019.38235472,0.00025,2]
[313322982,1707151841156,-335.39772833,0.00025,2]
[313322983,1707151841166,-4775.2314672,0.00025,2]
[313322984,1707151841177,-167.561569,0.00025,2]
[313322985,1707151841187,-167.561569,0.00025,2]
[313322986,1707151841198,-30403.59225346,0.00025105,2]
[313322987,1707151841209,-166.386198,0.00025105,2]
[313322988,1707151841221,-167.561569,0.00025105,2]
[313322989,1707151841232,-167.561569,0.00025105,2]
[313322990,1707151841355,-1052.38818953,0.00025144,2]
[313322991,1707151841402,-2276.26148693,0.00025144,2]
[313322992,1707151841411,-62.74291437,0.00025205,2]
[313322993,1707151841423,-437.25708563,0.00025205,2]
[313322994,1707151841432,-500.0,0.00025205,2]
[313322995,1707151841442,-1024.22,0.00025205,2]
[313322996,1707151841451,-578.24,0.00025205,2]
[313322997,1707151841461,-1435.09,0.00025205,2]
[313322998,1707151841470,-1886.14,0.00025205,2]
[313322999,1707151841479,-521.25,0.00025205,2]
[313323000,1707151841488,-500.0,0.00025205,2]
[313323001,1707151841497,-4994.37,0.00025205,2]
[313323002,1707151841506,-811.70318528,0.00025205,2]
[313323095,1707151842972,-433.10681472,0.00025205,2]
[313323098,1707151842982,-500.0,0.00025205,2]
[313323099,1707151842992,-783.43,0.00025205,2]
[313323102,1707151843001,-895.63,0.00025205,2]
[313323104,1707151843011,-500.0,0.00025205,2]
[313323105,1707151843020,-500.0,0.00025205,2]
[313323107,1707151843030,-500.0,0.00025205,2]
[313323109,1707151843039,-747.67618184,0.00025205,2]
[313323187,1707151843811,2089.79639896,0.0002,2]
[313323234,1707151852642,300.0,0.0002,2]
[313323235,1707151864610,2089.79639896,0.0002,2]
[313323236,1707151872684,300.0,0.0002,2]
[313323237,1707151888607,887.79776118,0.0002,2]
[313323238,1707151888643,300.0,0.0002,2]
[313323240,1707151906674,300.0,0.0002,2]
[313323241,1707151969948,620.96495057,0.0002,2]
[313323242,1707151986251,155.01860223,0.0002,2]
[313323243,1707151986617,2084.46421862,0.0002,2]
[313323244,1707151990654,300.0,0.0002,2]
[313323245,1707151993859,343.09681091,0.0002,2]
[313323246,1707151995507,234.9472934,0.0002,2]
[313323247,1707152002247,309.97086635,0.0002,2]
[313323264,1707152927425,270.6612929,0.0001968,2]
[313323270,1707152967633,5000.0,0.000201,4]
[313323405,1707153038265,-618.97871545,0.00020218,2]
[313323406,1707153038275,-295.6225975,0.00020218,2]
[313323408,1707153038284,-717.73938521,0.00020218,2]
[313323410,1707153038293,-1744.84561809,0.00020219,2]
[313323412,1707153038303,-2028.84930558,0.0002022,2]
[313323414,1707153038312,-625.207537,0.00020225,2]
[313323416,1707153038321,-11.34968772,0.00020322,2]
[313323419,1707153038333,-2988.65031228,0.00020322,2]
[313323421,1707153038342,-404.12757378,0.000209,2]
[313323422,1707153038351,-159.6054696,0.00020982,2]
[313323424,1707153038360,-19910.76123758,0.00020999,2]
[313323425,1707153038370,-1829.96950121,0.00021,2]
[313323427,1707153038380,-200.0,0.00021581,7]
[313323428,1707153038389,-166.666666,0.00021918,2]
[313323430,1707153038398,-10454.4957541,0.00022217,2]
[313323431,1707153038407,-3252.21461977,0.00023,2]
[313323432,1707153038416,-213.50403566,0.00023,2]
[313323433,1707153038425,-312.93612725,0.00023,6]
[313323434,1707153038435,-306.93810541,0.00023119,2]
[313323435,1707153038444,-280.0,0.00023739,7]
[313323436,1707153038454,-404.12757372,0.00024034,2]
[313323437,1707153038464,-383.46,0.00024647,3]
[313323438,1707153038473,-448.36095323,0.00024655,2]
[313323439,1707153038482,-243.75066271,0.00024656,2]
[313323440,1707153038491,-505.96,0.00024657,2]
[313323441,1707153038501,-460.20619479,0.00024657,2]
[313323442,1707153038510,-500.0,0.00024657,2]
[313323443,1707153038520,-1240.17,0.00024657,2]
[313323444,1707153038529,-500.0,0.00024657,2]
[313323445,1707153038539,-880.52,0.00024657,2]
[313323446,1707153038548,-4472.92,0.00024657,2]
[313323447,1707153038557,-1502.67,0.00024657,2]
[313323448,1707153038566,-601.93,0.00024657,2]
[313323449,1707153038576,-6055.25,0.00024657,2]
[313323450,1707153038586,-1766.54,0.00024657,2]
[313323451,1707153038595,-500.0,0.00024657,2]
[313323452,1707153038605,-500.0,0.00024657,2]
[313323453,1707153038614,-500.0,0.00024657,2]
[313323454,1707153038625,-990.61,0.00024657,2]
[313323455,1707153038638,-831.34,0.00024657,2]
[313323456,1707153038650,-500.0,0.00024657,2]
[313323457,1707153038662,-500.0,0.00024657,2]
[313323458,1707153038674,-505.96,0.00024931,2]
[313323459,1707153038685,-500.0,0.00024931,2]
[313323460,1707153038698,-1240.17,0.00024931,2]
[313323461,1707153038708,-500.0,0.00024931,2]
[313323462,1707153038719,-880.52,0.00024931,2]
[313323463,1707153038730,-4472.92,0.00024931,2]
[313323464,1707153038748,-1502.67,0.00024931,2]
[313323465,1707153038760,-601.93,0.00024931,2]
[313323466,1707153038771,-6055.25,0.00024931,2]
[313323467,1707153038782,-1766.54,0.00024931,2]
[313323468,1707153038793,-500.0,0.00024931,2]
[313323469,1707153038804,-500.0,0.00024931,2]
[313323470,1707153038816,-500.0,0.00024931,2]
[313323471,1707153038828,-990.61,0.00024931,2]
[313323472,1707153038839,-831.34,0.00024931,2]
[313323473,1707153038850,-529.41869672,0.00024931,2]
[313323474,1707153038862,-500.0,0.00024931,2]
[313323475,1707153038874,-600.21558173,0.00024979,2]
[313323476,1707153038886,-500.0,0.00024979,2]
[313323477,1707153038903,-500.0,0.00024979,2]
[313323478,1707153038915,-373.40151051,0.00024979,2]
[313323479,1707153038926,-21892.303299,0.0002498,2]
[313323480,1707153038940,-13291.91210896,0.0002498,2]